[Event "*** Titled Tuesday Blitz"]
[Site "Chess.com"]
[Date "2020.05.19"]
[Round "3"]
[White "Slovak_fighter2000"]
[Black "tigra"]
[Result "1/2-1/2"]
[WhiteElo "2534"]
[BlackElo "2762"]
[TimeControl "180+1"]
[EndTime "12:29:07 PDT"]
[Termination "Game drawn by agreement"]

1. d4 {[%clk 0:03:00.9]} 1... Nf6 {[%clk 0:02:59.8]} 2. Nf3 {[%clk 0:02:59.7]}
2... g6 {[%clk 0:03:00.1]} 3. c4 {[%clk 0:02:58.6]} 3... Bg7 {[%clk 0:02:59.4]}
4. Nc3 {[%clk 0:02:59.1]} 4... d5 {[%clk 0:02:59.8]} 5. Bg5 {[%clk 0:02:58.4]}
5... Ne4 {[%clk 0:02:59.8]} 6. cxd5 {[%clk 0:02:58.3]} 6... Nxg5 {[%clk
0:02:59.6]} 7. Nxg5 {[%clk 0:02:59.2]} 7... e6 {[%clk 0:03:00.3]} 8. Qd2 {[%clk
0:02:59.1]} 8... exd5 {[%clk 0:03:00]} 9. Qe3+ {[%clk 0:02:59]} 9... Kf8 {[%clk
0:03:00.2]} 10. Qf4 {[%clk 0:02:59.6]} 10... Bf6 {[%clk 0:03:00.2]} 11. h4
{[%clk 0:02:59.2]} 11... Kg7 {[%clk 0:02:50.9]} 12. e3 {[%clk 0:02:39.5]} 12...
c6 {[%clk 0:02:48.7]} 13. Bd3 {[%clk 0:02:39]} 13... Nd7 {[%clk 0:02:36.1]} 14.
O-O-O {[%clk 0:02:33.2]} 14... h6 {[%clk 0:02:31.6]} 15. Nf3 {[%clk 0:02:32.4]}
15... Nf8 {[%clk 0:02:19.9]} 16. Kb1 {[%clk 0:02:28.6]} 16... Ne6 {[%clk
0:02:17]} 17. Qg3 {[%clk 0:02:28]} 17... Qc7 {[%clk 0:02:05.8]} 18. Ne5 {[%clk
0:02:21.8]} 18... Bxe5 {[%clk 0:01:44.4]} 19. dxe5 {[%clk 0:02:22.7]} 19... Nc5
{[%clk 0:01:39.4]} 20. Bc2 {[%clk 0:02:17.9]} 20... h5 {[%clk 0:01:29.1]} 21.
Qg5 {[%clk 0:02:10.3]} 21... Qd8 {[%clk 0:01:27.2]} 22. Qf4 {[%clk 0:02:02]}
22... Qe7 {[%clk 0:01:22.9]} 23. e4 {[%clk 0:01:56.9]} 23... d4 {[%clk
0:01:15.7]} 24. Rxd4 {[%clk 0:01:48.5]} 24... Ne6 {[%clk 0:01:15.1]} 25. Qf6+
{[%clk 0:01:49]} 25... Qxf6 {[%clk 0:01:15.4]} 26. exf6+ {[%clk 0:01:49.9]}
26... Kxf6 {[%clk 0:01:15.7]} 27. Rd2 {[%clk 0:01:48.9]} 27... Rd8 {[%clk
0:01:09.9]} 28. Rxd8 {[%clk 0:01:47.3]} 28... Nxd8 {[%clk 0:01:10.8]} 29. f4
{[%clk 0:01:42.6]} 29... Ne6 {[%clk 0:01:07.3]} 30. e5+ {[%clk 0:01:40.7]} 30...
Ke7 {[%clk 0:01:07.2]} 31. g3 {[%clk 0:01:40.1]} 31... Nd4 {[%clk 0:01:07]} 32.
Rd1 {[%clk 0:01:30.8]} 32... Nxc2 {[%clk 0:01:04.9]} 33. Kxc2 {[%clk 0:01:31.7]}
33... Bf5+ {[%clk 0:01:04.6]} 34. Kb3 {[%clk 0:01:29.6]} 34... Re8 {[%clk
0:01:04.4]} 35. Rd6 {[%clk 0:01:23.9]} 35... Rd8 {[%clk 0:01:02.2]} 36. Rxd8
{[%clk 0:01:23.2]} 36... Kxd8 {[%clk 0:01:03.1]} 37. Kc4 {[%clk 0:01:22.6]}
37... b6 {[%clk 0:01:00.1]} 38. b4 {[%clk 0:01:21.6]} 38... Bc2 {[%clk
0:00:54.5]} 39. a3 {[%clk 0:01:19.1]} 39... Kd7 {[%clk 0:00:54.2]} 40. Kd4
{[%clk 0:01:19]} 40... Ke6 {[%clk 0:00:53.5]} 41. Ne2 {[%clk 0:01:07]} 41... Bd1
{[%clk 0:00:52.5]} 42. Nc3 {[%clk 0:01:04]} 42... Bb3 {[%clk 0:00:52]} 43. Ne4
{[%clk 0:01:01.2]} 43... Bd5 {[%clk 0:00:46.9]} 44. Nc3 {[%clk 0:00:56]} 44...
Bg2 {[%clk 0:00:44.4]} 45. Nd1 {[%clk 0:00:46.7]} 45... Bh1 {[%clk 0:00:40.7]}
46. Ne3 {[%clk 0:00:46.1]} 46... Bf3 {[%clk 0:00:38.8]} 47. Kc4 {[%clk
0:00:42.9]} 47... Ke7 {[%clk 0:00:31.5]} 48. Kd4 {[%clk 0:00:42.7]} 48... Kd7
{[%clk 0:00:30]} 49. Kc4 {[%clk 0:00:42.8]} 49... Ke6 {[%clk 0:00:28.6]} 50. Kd4
{[%clk 0:00:43]} 50... Be2 {[%clk 0:00:16.2]} 51. Ke4 {[%clk 0:00:37.2]} 1/2-1/2

[Event "*** Titled Tuesday Blitz"]
[Site "Chess.com"]
[Date "2020.05.19"]
[Round "3"]
[White "StephenDedalus83"]
[Black "louis198"]
[Result "1-0"]
[WhiteElo "2743"]
[BlackElo "2497"]
[TimeControl "180+1"]
[EndTime "12:29:07 PDT"]
[Termination "StephenDedalus83 won by resignation"]

1. e4 {[%clk 0:03:00.9]} 1... e6 {[%clk 0:02:59]} 2. d4 {[%clk 0:03:00.4]} 2...
d5 {[%clk 0:02:59.9]} 3. Nc3 {[%clk 0:02:59.2]} 3... dxe4 {[%clk 0:03:00]} 4.
Nxe4 {[%clk 0:02:58.5]} 4... Bd7 {[%clk 0:03:00.9]} 5. Nf3 {[%clk 0:02:58]} 5...
Bc6 {[%clk 0:03:01.4]} 6. Bd3 {[%clk 0:02:58]} 6... Nd7 {[%clk 0:03:00.6]} 7.
O-O {[%clk 0:02:57.8]} 7... Ngf6 {[%clk 0:03:00.5]} 8. Ng3 {[%clk 0:02:56.5]}
8... g6 {[%clk 0:03:00.1]} 9. Qe2 {[%clk 0:02:53.7]} 9... Bg7 {[%clk 0:02:59.8]}
10. Ne5 {[%clk 0:02:52.3]} 10... Nxe5 {[%clk 0:02:41.7]} 11. dxe5 {[%clk
0:02:52.2]} 11... Nd7 {[%clk 0:02:42.6]} 12. f4 {[%clk 0:02:49.2]} 12... Qe7
{[%clk 0:02:41.6]} 13. Be3 {[%clk 0:02:46.3]} 13... Nc5 {[%clk 0:02:08.6]} 14.
Bc4 {[%clk 0:02:42.3]} 14... a5 {[%clk 0:02:08.6]} 15. Rad1 {[%clk 0:02:32.9]}
15... h5 {[%clk 0:02:01.9]} 16. Qf2 {[%clk 0:02:29.5]} 16... Bf8 {[%clk
0:01:48.7]} 17. h3 {[%clk 0:01:43.8]} 17... h4 {[%clk 0:01:47.5]} 18. Ne2 {[%clk
0:01:42.6]} 18... Ne4 {[%clk 0:01:47.7]} 19. Qe1 {[%clk 0:01:41.9]} 19... Bh6
{[%clk 0:01:42.5]} 20. Nd4 {[%clk 0:01:38.9]} 20... Ng3 {[%clk 0:01:39.2]} 21.
Nxc6 {[%clk 0:01:38.4]} 21... bxc6 {[%clk 0:01:38.6]} 22. Rf2 {[%clk 0:01:38]}
22... Nf5 {[%clk 0:01:34.8]} 23. Bd3 {[%clk 0:01:26.2]} 23... Qb4 {[%clk
0:01:07.3]} 24. c3 {[%clk 0:01:23.1]} 24... Qe7 {[%clk 0:01:03.6]} 25. Be4
{[%clk 0:01:21.9]} 25... O-O {[%clk 0:00:54.6]} 26. Bxc6 {[%clk 0:01:17.8]}
26... Rad8 {[%clk 0:00:54.8]} 27. Rfd2 {[%clk 0:01:17.1]} 27... Rxd2 {[%clk
0:00:54.2]} 28. Rxd2 {[%clk 0:01:16.2]} 28... Rd8 {[%clk 0:00:53.5]} 29. Rxd8+
{[%clk 0:01:04.3]} 29... Qxd8 {[%clk 0:00:53.4]} 30. Bd2 {[%clk 0:01:04.2]}
30... Qb8 {[%clk 0:00:51]} 31. Be4 {[%clk 0:00:57.5]} 31... Qxb2 {[%clk
0:00:50.9]} 32. a4 {[%clk 0:00:56.6]} 32... Ng3 {[%clk 0:00:48.4]} 33. Bf3
{[%clk 0:00:52.9]} 33... Qc2 {[%clk 0:00:43.7]} 34. Qc1 {[%clk 0:00:41]} 34...
Qxa4 {[%clk 0:00:40]} 35. c4 {[%clk 0:00:39.7]} 35... c5 {[%clk 0:00:38.4]} 36.
Kf2 {[%clk 0:00:36.8]} 36... Qa2 {[%clk 0:00:36.1]} 37. Ke3 {[%clk 0:00:36.6]}
37... Nf5+ {[%clk 0:00:33.8]} 38. Kd3 {[%clk 0:00:36.3]} 38... a4 {[%clk
0:00:32.2]} 39. Qc2 {[%clk 0:00:31.8]} 39... Qa1 {[%clk 0:00:27]} 40. Bc3 {[%clk
0:00:27]} 40... Qf1+ {[%clk 0:00:25.5]} 41. Qe2 {[%clk 0:00:26.8]} 41... Qxe2+
{[%clk 0:00:23]} 42. Bxe2 {[%clk 0:00:26]} 42... Bxf4 {[%clk 0:00:23.9]} 43. Bb2
{[%clk 0:00:23.3]} 43... Ne3 {[%clk 0:00:22.4]} 44. Bf3 {[%clk 0:00:19.1]} 44...
Nd1 {[%clk 0:00:20.4]} 45. Bxd1 {[%clk 0:00:16.7]} 45... a3 {[%clk 0:00:16.4]}
46. Bxa3 {[%clk 0:00:15.7]} 46... Bxe5 {[%clk 0:00:16.8]} 47. Bxc5 {[%clk
0:00:16.1]} 47... Kg7 {[%clk 0:00:17.1]} 48. Bd4 {[%clk 0:00:15.9]} 48... Kf6
{[%clk 0:00:16.8]} 49. c5 {[%clk 0:00:15.6]} 49... Bxd4 {[%clk 0:00:17.1]} 50.
Kxd4 {[%clk 0:00:15.4]} 50... e5+ {[%clk 0:00:18]} 51. Kd5 {[%clk 0:00:14.9]}
1-0

[Event "*** Titled Tuesday Blitz"]
[Site "Chess.com"]
[Date "2020.05.19"]
[Round "3"]
[White "Paladin61"]
[Black "bsnsun"]
[Result "1/2-1/2"]
[WhiteElo "2649"]
[BlackElo "2489"]
[TimeControl "180+1"]
[EndTime "12:29:08 PDT"]
[Termination "Game drawn by agreement"]

1. b3 {[%clk 0:02:53.6]} 1... e5 {[%clk 0:02:49.7]} 2. Bb2 {[%clk 0:02:53.4]}
2... Nc6 {[%clk 0:02:49.8]} 3. e3 {[%clk 0:02:53.5]} 3... Nf6 {[%clk 0:02:46.5]}
4. Bb5 {[%clk 0:02:52.5]} 4... Bd6 {[%clk 0:02:46.7]} 5. Na3 {[%clk 0:02:52.1]}
5... Na5 {[%clk 0:02:27.6]} 6. Be2 {[%clk 0:02:51.5]} 6... O-O {[%clk
0:02:25.2]} 7. Nb5 {[%clk 0:02:49.7]} 7... Qe7 {[%clk 0:02:20]} 8. Nxd6 {[%clk
0:02:34.1]} 8... Qxd6 {[%clk 0:02:05.6]} 9. d4 {[%clk 0:02:13.2]} 9... exd4
{[%clk 0:02:04]} 10. Qxd4 {[%clk 0:02:08.9]} 10... Qxd4 {[%clk 0:01:57.9]} 11.
Bxd4 {[%clk 0:02:08.5]} 11... Nc6 {[%clk 0:01:58.2]} 12. Bxf6 {[%clk 0:02:01.1]}
12... gxf6 {[%clk 0:01:58.1]} 13. Nf3 {[%clk 0:01:56.7]} 13... d6 {[%clk
0:01:58.5]} 14. c3 {[%clk 0:01:46.3]} 14... Bf5 {[%clk 0:01:50.6]} 15. Kd2
{[%clk 0:01:21.4]} 15... Rfe8 {[%clk 0:01:49.5]} 16. Nd4 {[%clk 0:01:12.9]}
16... Bd7 {[%clk 0:01:46.1]} 17. Bf3 {[%clk 0:01:07.8]} 17... Rab8 {[%clk
0:01:37.5]} 18. Nxc6 {[%clk 0:01:01.6]} 18... Bxc6 {[%clk 0:01:36.1]} 19. Bxc6
{[%clk 0:00:59.1]} 19... bxc6 {[%clk 0:01:36.5]} 20. Kc2 {[%clk 0:00:55.9]}
20... Rb5 {[%clk 0:01:34.6]} 21. Rad1 {[%clk 0:00:40.5]} 21... Rg5 {[%clk
0:01:34]} 22. Rhg1 {[%clk 0:00:37.8]} 22... Rf5 {[%clk 0:01:33.9]} 23. Rd2
{[%clk 0:00:37.5]} 23... Kf8 {[%clk 0:01:34]} 24. Kd1 {[%clk 0:00:34.4]} 24...
Ke7 {[%clk 0:01:33.1]} 25. Ke2 {[%clk 0:00:34.4]} 25... Rg8 {[%clk 0:01:32.9]}
26. g3 {[%clk 0:00:26.6]} 26... h5 {[%clk 0:01:32.8]} 27. h4 {[%clk 0:00:24]}
27... Ra5 {[%clk 0:01:32.6]} 28. Rc1 {[%clk 0:00:22.7]} 28... Re5 {[%clk
0:01:29.4]} 29. Rd4 {[%clk 0:00:21.4]} 29... Rb8 {[%clk 0:01:26.6]} 30. Ra4
{[%clk 0:00:21]} 30... Rb7 {[%clk 0:01:26.8]} 31. Rd1 {[%clk 0:00:21]} 31...
Reb5 {[%clk 0:01:25.5]} 32. Rdd4 {[%clk 0:00:19.8]} 32... Kd7 {[%clk 0:01:25.9]}
33. Rf4 {[%clk 0:00:18.5]} 33... Ke7 {[%clk 0:01:25.4]} 34. Kd3 {[%clk
0:00:18.5]} 34... Re5 {[%clk 0:01:25.1]} 35. Kc2 {[%clk 0:00:18.1]} 35... c5
{[%clk 0:01:23.6]} 36. Ra5 {[%clk 0:00:16.5]} 36... Ke6 {[%clk 0:01:22.4]} 37.
Rfa4 {[%clk 0:00:13.9]} 37... Rf5 {[%clk 0:01:20.8]} 38. f4 {[%clk 0:00:14.1]}
38... c4 {[%clk 0:01:04.6]} 39. Rxa7 {[%clk 0:00:13.5]} 39... cxb3+ {[%clk
0:00:58.5]} 40. axb3 {[%clk 0:00:12.5]} 40... Rxa7 {[%clk 0:00:53.9]} 41. Rxa7
{[%clk 0:00:12.2]} 41... Rc5 {[%clk 0:00:54.5]} 42. b4 {[%clk 0:00:12]} 42...
Rc6 {[%clk 0:00:53.9]} 43. Ra5 {[%clk 0:00:08.4]} 43... f5 {[%clk 0:00:51.1]}
44. Kd3 {[%clk 0:00:08.6]} 44... Rb6 {[%clk 0:00:48.9]} 45. Ra8 {[%clk
0:00:06.8]} 45... Kf6 {[%clk 0:00:47.8]} 46. Ra5 {[%clk 0:00:06.5]} 46... Ke6
{[%clk 0:00:47.8]} 47. c4 {[%clk 0:00:06.6]} 47... Rxb4 {[%clk 0:00:46.5]}
1/2-1/2

[Event "*** Titled Tuesday Blitz"]
[Site "Chess.com"]
[Date "2020.05.19"]
[Round "3"]
[White "GMJustin"]
[Black "RestartingChess"]
[Result "0-1"]
[WhiteElo "2358"]
[BlackElo "2556"]
[TimeControl "180+1"]
[EndTime "12:29:09 PDT"]
[Termination "RestartingChess won on time"]

1. d4 {[%clk 0:02:58.6]} 1... Nf6 {[%clk 0:03:00.3]} 2. c4 {[%clk 0:02:57.6]}
2... e5 {[%clk 0:03:00.6]} 3. dxe5 {[%clk 0:02:56.4]} 3... Ng4 {[%clk
0:03:01.3]} 4. Bf4 {[%clk 0:02:55.4]} 4... Nc6 {[%clk 0:03:01.1]} 5. Nf3 {[%clk
0:02:51.9]} 5... Bb4+ {[%clk 0:03:01.8]} 6. Nbd2 {[%clk 0:02:51]} 6... Qe7
{[%clk 0:03:02.2]} 7. e3 {[%clk 0:02:50.3]} 7... Ngxe5 {[%clk 0:03:00.4]} 8.
Nxe5 {[%clk 0:02:49.9]} 8... Nxe5 {[%clk 0:03:00.3]} 9. Be2 {[%clk 0:02:49.4]}
9... d6 {[%clk 0:03:00.2]} 10. O-O {[%clk 0:02:45.9]} 10... Bxd2 {[%clk
0:03:00.5]} 11. Qxd2 {[%clk 0:02:45.9]} 11... O-O {[%clk 0:03:00.3]} 12. Rac1
{[%clk 0:02:29.6]} 12... b6 {[%clk 0:03:00.4]} 13. b4 {[%clk 0:02:28.9]} 13...
a5 {[%clk 0:02:58.7]} 14. a3 {[%clk 0:02:00.6]} 14... axb4 {[%clk 0:02:58.3]}
15. axb4 {[%clk 0:02:00.4]} 15... Be6 {[%clk 0:02:47]} 16. c5 {[%clk 0:01:51.3]}
16... bxc5 {[%clk 0:02:46]} 17. bxc5 {[%clk 0:01:50.1]} 17... Ra2 {[%clk
0:02:21.8]} 18. cxd6 {[%clk 0:01:33]} 18... cxd6 {[%clk 0:02:03.2]} 19. Rc2
{[%clk 0:01:28]} 19... Rxc2 {[%clk 0:01:59.6]} 20. Qxc2 {[%clk 0:01:27.9]} 20...
Ng6 {[%clk 0:02:00.5]} 21. Bg3 {[%clk 0:01:26.3]} 21... Rd8 {[%clk 0:01:58.2]}
22. Rd1 {[%clk 0:01:18.9]} 22... d5 {[%clk 0:01:58.6]} 23. h3 {[%clk 0:01:13.4]}
23... Qg5 {[%clk 0:01:43.1]} 24. Bd3 {[%clk 0:01:05.9]} 24... h5 {[%clk
0:01:32.1]} 25. Bxg6 {[%clk 0:00:53.7]} 25... fxg6 {[%clk 0:01:32.4]} 26. Qc7
{[%clk 0:00:40.6]} 26... Rd7 {[%clk 0:01:12.5]} 27. Qc6 {[%clk 0:00:34]} 27...
Qf6 {[%clk 0:01:08.8]} 28. Rc1 {[%clk 0:00:16.6]} 28... h4 {[%clk 0:01:07.4]}
29. Bxh4 {[%clk 0:00:13.5]} 29... Qe5 {[%clk 0:00:52]} 30. Qa8+ {[%clk
0:00:12.8]} 30... Kh7 {[%clk 0:00:49.9]} 31. Rc8 {[%clk 0:00:12.6]} 31... g5
{[%clk 0:00:47.7]} 32. Bg3 {[%clk 0:00:12.3]} 32... Qe4 {[%clk 0:00:46.7]} 33.
Rh8+ {[%clk 0:00:11.5]} 33... Kg6 {[%clk 0:00:45]} 34. Qe8+ {[%clk 0:00:11.1]}
34... Rf7 {[%clk 0:00:44.5]} 35. Rf8 {[%clk 0:00:10.2]} 35... Qf5 {[%clk
0:00:42.8]} 36. Rxf7 {[%clk 0:00:09.7]} 36... Bxf7 {[%clk 0:00:41.9]} 37. Qc6+
{[%clk 0:00:09.5]} 37... Be6 {[%clk 0:00:42.3]} 38. Qc5 {[%clk 0:00:08.9]} 38...
Qb1+ {[%clk 0:00:42]} 39. Kh2 {[%clk 0:00:08.7]} 39... Qe4 {[%clk 0:00:41.4]}
40. f3 {[%clk 0:00:08.4]} 40... Qf5 {[%clk 0:00:38.5]} 41. Qd4 {[%clk
0:00:07.6]} 41... Kh7 {[%clk 0:00:25.7]} 42. Be5 {[%clk 0:00:07]} 42... Qg6
{[%clk 0:00:25.7]} 43. Kg1 {[%clk 0:00:05.9]} 43... Qb1+ {[%clk 0:00:25.3]} 44.
Kh2 {[%clk 0:00:05.7]} 44... Qg6 {[%clk 0:00:26.2]} 45. h4 {[%clk 0:00:04.3]}
45... Qh6 {[%clk 0:00:24.8]} 46. Bg3 {[%clk 0:00:03.8]} 46... Qh5 {[%clk
0:00:19.8]} 47. Kg1 {[%clk 0:00:03.1]} 47... gxh4 {[%clk 0:00:17.5]} 48. Bxh4
{[%clk 0:00:02.9]} 48... Kg6 {[%clk 0:00:18.4]} 49. Kf2 {[%clk 0:00:02.3]} 49...
Qf5 {[%clk 0:00:17.2]} 50. g4 {[%clk 0:00:01.1]} 50... Qc2+ {[%clk 0:00:17.3]}
51. Kg3 {[%clk 0:00:01.2]} 51... Kf7 {[%clk 0:00:17.8]} 0-1

[Event "*** Titled Tuesday Blitz"]
[Site "Chess.com"]
[Date "2020.05.19"]
[Round "3"]
[White "Siemba"]
[Black "LimeInTheCoconut"]
[Result "0-1"]
[WhiteElo "2251"]
[BlackElo "2505"]
[TimeControl "180+1"]
[EndTime "12:29:10 PDT"]
[Termination "LimeInTheCoconut won on time"]

1. e4 {[%clk 0:03:00.8]} 1... c6 {[%clk 0:03:00]} 2. d4 {[%clk 0:02:53.8]} 2...
d5 {[%clk 0:03:00.3]} 3. Nc3 {[%clk 0:02:54.7]} 3... dxe4 {[%clk 0:03:00.4]} 4.
Nxe4 {[%clk 0:02:55.6]} 4... Bf5 {[%clk 0:03:00.7]} 5. Ng3 {[%clk 0:02:56.2]}
5... Bg6 {[%clk 0:03:01.3]} 6. h4 {[%clk 0:02:56.9]} 6... h6 {[%clk 0:03:01.2]}
7. Nf3 {[%clk 0:02:57.6]} 7... e6 {[%clk 0:03:01.7]} 8. h5 {[%clk 0:02:57.3]}
8... Bh7 {[%clk 0:03:01.8]} 9. Bd3 {[%clk 0:02:58]} 9... Bxd3 {[%clk 0:03:02.2]}
10. Qxd3 {[%clk 0:02:58.9]} 10... Nf6 {[%clk 0:03:02.9]} 11. Bd2 {[%clk
0:02:59]} 11... c5 {[%clk 0:03:03.3]} 12. O-O-O {[%clk 0:01:53]} 12... Nc6
{[%clk 0:03:02.1]} 13. Bc3 {[%clk 0:01:46.7]} 13... Qd5 {[%clk 0:03:01.2]} 14.
dxc5 {[%clk 0:01:38.1]} 14... Qxd3 {[%clk 0:02:53.4]} 15. cxd3 {[%clk
0:01:32.9]} 15... Bxc5 {[%clk 0:02:52.9]} 16. d4 {[%clk 0:01:33.7]} 16... Be7
{[%clk 0:02:51.3]} 17. Ne5 {[%clk 0:01:34]} 17... Rc8 {[%clk 0:02:48.2]} 18. Kb1
{[%clk 0:01:27.8]} 18... Nd5 {[%clk 0:02:46.8]} 19. Ne4 {[%clk 0:01:24.1]} 19...
O-O {[%clk 0:02:42.6]} 20. g4 {[%clk 0:01:07.4]} 20... Rfd8 {[%clk 0:02:39.2]}
21. Rhg1 {[%clk 0:00:58.7]} 21... b5 {[%clk 0:02:05.2]} 22. Nxc6 {[%clk
0:00:50]} 22... Rxc6 {[%clk 0:02:03.8]} 23. Ba5 {[%clk 0:00:50.8]} 23... Rdc8
{[%clk 0:01:59]} 24. Rc1 {[%clk 0:00:46.3]} 24... f6 {[%clk 0:01:44]} 25. Rxc6
{[%clk 0:00:42.8]} 25... Rxc6 {[%clk 0:01:44.9]} 26. Rc1 {[%clk 0:00:43.5]}
26... Rxc1+ {[%clk 0:01:43.2]} 27. Kxc1 {[%clk 0:00:44.4]} 27... Kf7 {[%clk
0:01:42.5]} 28. Kd2 {[%clk 0:00:24.6]} 28... f5 {[%clk 0:01:41]} 29. gxf5 {[%clk
0:00:13.9]} 29... exf5 {[%clk 0:01:41.9]} 30. Nc3 {[%clk 0:00:13.8]} 30... Nxc3
{[%clk 0:00:53.2]} 31. Kxc3 {[%clk 0:00:09.4]} 31... g6 {[%clk 0:00:51.7]} 32.
hxg6+ {[%clk 0:00:07.9]} 32... Kxg6 {[%clk 0:00:52.6]} 33. Bc7 {[%clk
0:00:06.5]} 33... Kf7 {[%clk 0:00:43.2]} 34. d5 {[%clk 0:00:06.7]} 34... Ke8
{[%clk 0:00:42.8]} 35. Kd4 {[%clk 0:00:04.5]} 35... Bf6+ {[%clk 0:00:41.2]} 36.
Be5 {[%clk 0:00:04.8]} 36... Bh4 {[%clk 0:00:31.1]} 37. Ke3 {[%clk 0:00:03.8]}
37... Bg5+ {[%clk 0:00:26.9]} 38. Kd3 {[%clk 0:00:02.7]} 38... Kd7 {[%clk
0:00:26.5]} 39. f3 {[%clk 0:00:02.8]} 39... a6 {[%clk 0:00:26.5]} 40. b3 {[%clk
0:00:03.1]} 40... h5 {[%clk 0:00:26.6]} 41. Ke2 {[%clk 0:00:03.2]} 41... Be7
{[%clk 0:00:21.4]} 42. Ke3 {[%clk 0:00:03.4]} 42... Bd6 {[%clk 0:00:16.6]} 0-1

[Event "*** Titled Tuesday Blitz"]
[Site "Chess.com"]
[Date "2020.05.19"]
[Round "3"]
[White "Shahinyan_ChessMood"]
[Black "PlotnikovPavel"]
[Result "1-0"]
[WhiteElo "2663"]
[BlackElo "2480"]
[TimeControl "180+1"]
[EndTime "12:29:14 PDT"]
[Termination "Shahinyan_ChessMood won on time"]

1. e4 {[%clk 0:03:00.9]} 1... e6 {[%clk 0:02:59.7]} 2. d3 {[%clk 0:02:59.3]}
2... d5 {[%clk 0:02:59.8]} 3. Nd2 {[%clk 0:03:00.2]} 3... c5 {[%clk 0:02:58]} 4.
Ngf3 {[%clk 0:03:00.3]} 4... Nc6 {[%clk 0:02:58.4]} 5. g3 {[%clk 0:02:57.9]}
5... g6 {[%clk 0:02:58.7]} 6. Bg2 {[%clk 0:02:57.9]} 6... Bg7 {[%clk 0:02:59.2]}
7. O-O {[%clk 0:02:58.1]} 7... Nge7 {[%clk 0:02:55.6]} 8. exd5 {[%clk 0:02:58]}
8... exd5 {[%clk 0:02:55.5]} 9. Re1 {[%clk 0:02:57.2]} 9... O-O {[%clk
0:02:55.3]} 10. a4 {[%clk 0:02:53.5]} 10... b6 {[%clk 0:02:53.4]} 11. Nb3 {[%clk
0:02:51.9]} 11... a5 {[%clk 0:02:46.4]} 12. c3 {[%clk 0:02:46.3]} 12... Bg4
{[%clk 0:02:31.9]} 13. h3 {[%clk 0:02:40]} 13... Bf5 {[%clk 0:02:31.9]} 14. Bf4
{[%clk 0:02:33]} 14... Rc8 {[%clk 0:02:12.7]} 15. Ne5 {[%clk 0:02:21.2]} 15...
Nxe5 {[%clk 0:02:08.3]} 16. Bxe5 {[%clk 0:02:22.1]} 16... Bxe5 {[%clk
0:01:52.6]} 17. Rxe5 {[%clk 0:02:20.6]} 17... Qd6 {[%clk 0:01:42.6]} 18. Qe1
{[%clk 0:02:07.4]} 18... Rc7 {[%clk 0:01:38.6]} 19. d4 {[%clk 0:02:03]} 19... c4
{[%clk 0:01:29.2]} 20. Nd2 {[%clk 0:01:56.9]} 20... Be6 {[%clk 0:01:10.7]} 21.
Nf3 {[%clk 0:01:34.5]} 21... Nc6 {[%clk 0:01:10.3]} 22. Re3 {[%clk 0:01:34.5]}
22... Rd8 {[%clk 0:01:01.8]} 23. Qd2 {[%clk 0:01:33.7]} 23... Ne7 {[%clk
0:00:59.3]} 24. Rae1 {[%clk 0:01:31.8]} 24... Nf5 {[%clk 0:00:58.6]} 25. Re5
{[%clk 0:01:32.3]} 25... Kg7 {[%clk 0:00:55]} 26. g4 {[%clk 0:01:22.9]} 26...
Nh6 {[%clk 0:00:47.3]} 27. Rh5 {[%clk 0:00:59.2]} 27... Ng8 {[%clk 0:00:38.7]}
28. Rh4 {[%clk 0:00:51.8]} 28... h6 {[%clk 0:00:16.5]} 29. Ne5 {[%clk 0:00:38]}
29... g5 {[%clk 0:00:13.8]} 30. Rh5 {[%clk 0:00:36.7]} 30... Qe7 {[%clk
0:00:12.5]} 31. f4 {[%clk 0:00:28.9]} 31... gxf4 {[%clk 0:00:10.8]} 32. Qxf4
{[%clk 0:00:26.8]} 32... Qf6 {[%clk 0:00:10.6]} 33. Qg3 {[%clk 0:00:20.5]} 33...
Kf8 {[%clk 0:00:06.3]} 34. g5 {[%clk 0:00:19]} 34... hxg5 {[%clk 0:00:04.8]} 35.
Rxg5 {[%clk 0:00:19.2]} 35... Ne7 {[%clk 0:00:04.2]} 36. Rf1 {[%clk 0:00:13.3]}
36... Qh6 {[%clk 0:00:03.8]} 37. Nxf7 {[%clk 0:00:11]} 37... Bxf7 {[%clk
0:00:02.3]} 38. Qxc7 {[%clk 0:00:08.9]} 38... Qxg5 {[%clk 0:00:01.7]} 39. Qxd8+
{[%clk 0:00:09.4]} 39... Kg7 {[%clk 0:00:02.1]} 40. Qd6 {[%clk 0:00:09.4]} 40...
Ng6 {[%clk 0:00:01.5]} 41. Kh2 {[%clk 0:00:07.8]} 41... Nh4 {[%clk 0:00:01.3]}
42. Qg3 {[%clk 0:00:08]} 1-0